[Event "Early-Titled-Tuesday-Blitz-October-03-2023"]
[Site "Chess.com"]
[Date "2023.10.03"]
[Round "9"]
[White "ChessQueen"]
[Black "borocotoajua"]
[Result "1/2-1/2"]
[WhiteElo "2720"]
[BlackElo "2611"]
[TimeControl "180+1"]
[EndTime "9:47:09 PDT"]
[Termination "Game drawn - insufficient material"]

1. e4 {[%clk 0:03:00.9]} 1... c6 {[%clk 0:02:54.9]} 2. Nc3 {[%clk 0:02:58.7]}
2... d5 {[%clk 0:02:54.9]} 3. Nf3 {[%clk 0:02:59.2]} 3... Bg4 {[%clk 0:02:53.8]}
4. h3 {[%clk 0:02:58.7]} 4... Bxf3 {[%clk 0:02:53.9]} 5. Qxf3 {[%clk 0:02:59.6]}
5... e6 {[%clk 0:02:54.3]} 6. g3 {[%clk 0:02:59.5]} 6... d4 {[%clk 0:02:53.8]}
7. Ne2 {[%clk 0:02:59.1]} 7... Nd7 {[%clk 0:02:35]} 8. d3 {[%clk 0:02:52.3]}
8... Qb6 {[%clk 0:02:20.9]} 9. g4 {[%clk 0:02:33.4]} 9... Bd6 {[%clk 0:02:11.3]}
10. h4 {[%clk 0:02:22.2]} 10... Ne7 {[%clk 0:02:00.4]} 11. Bg2 {[%clk 0:02:18]}
11... Qa5+ {[%clk 0:01:35.7]} 12. Bd2 {[%clk 0:02:09.9]} 12... Qb6 {[%clk
0:01:34.9]} 13. Rb1 {[%clk 0:01:52.5]} 13... a5 {[%clk 0:01:28.2]} 14. h5 {[%clk
0:01:45.6]} 14... h6 {[%clk 0:01:26]} 15. Qh3 {[%clk 0:01:42.8]} 15... a4 {[%clk
0:01:23.2]} 16. f4 {[%clk 0:01:38.6]} 16... a3 {[%clk 0:01:10.6]} 17. e5 {[%clk
0:00:58]} 17... Bc5 {[%clk 0:00:58.5]} 18. b4 {[%clk 0:00:43.4]} 18... Nd5
{[%clk 0:00:58.6]} 19. Bxd5 {[%clk 0:00:41.2]} 19... cxd5 {[%clk 0:00:57.8]} 20.
O-O {[%clk 0:00:40.8]} 20... Be7 {[%clk 0:00:57.5]} 21. Rb3 {[%clk 0:00:37.7]}
21... Rc8 {[%clk 0:00:48.7]} 22. Rc1 {[%clk 0:00:37.6]} 22... Qa7 {[%clk
0:00:43.3]} 23. Qg3 {[%clk 0:00:37.4]} 23... Nb6 {[%clk 0:00:39.3]} 24. f5
{[%clk 0:00:36.9]} 24... Na4 {[%clk 0:00:37.6]} 25. fxe6 {[%clk 0:00:35.9]}
25... fxe6 {[%clk 0:00:38.5]} 26. Nf4 {[%clk 0:00:33.6]} 26... Qb6 {[%clk
0:00:28.2]} 27. Ng6 {[%clk 0:00:30.8]} 27... Rg8 {[%clk 0:00:27.8]} 28. Qf2
{[%clk 0:00:28.7]} 28... Bg5 {[%clk 0:00:24.7]} 29. Bxg5 {[%clk 0:00:26.4]}
29... hxg5 {[%clk 0:00:25.6]} 30. Rf1 {[%clk 0:00:25.5]} 30... Qc7 {[%clk
0:00:23.4]} 31. Rxa3 {[%clk 0:00:24]} 31... Nc3 {[%clk 0:00:20.3]} 32. Qf8+
{[%clk 0:00:22.3]} 32... Rxf8 {[%clk 0:00:18.7]} 33. Rxf8+ {[%clk 0:00:23.2]}
33... Kd7 {[%clk 0:00:19.3]} 34. Rf7+ {[%clk 0:00:23.9]} 34... Kc6 {[%clk
0:00:20.2]} 35. Rxc7+ {[%clk 0:00:23.2]} 35... Rxc7 {[%clk 0:00:21.1]} 36. Ra8
{[%clk 0:00:19.2]} 36... Kb5 {[%clk 0:00:19.9]} 37. Nf8 {[%clk 0:00:16.9]} 37...
Ne2+ {[%clk 0:00:19]} 38. Kf1 {[%clk 0:00:17.5]} 38... Nf4 {[%clk 0:00:19.5]}
39. Re8 {[%clk 0:00:16.8]} 39... Rxc2 {[%clk 0:00:18.5]} 40. Nxe6 {[%clk
0:00:16.8]} 40... Rc1+ {[%clk 0:00:18.3]} 41. Kf2 {[%clk 0:00:16.1]} 41... Nxd3+
{[%clk 0:00:17.5]} 42. Ke2 {[%clk 0:00:16.4]} 42... Nxe5 {[%clk 0:00:15.9]} 43.
Nxd4+ {[%clk 0:00:16.2]} 43... Kc4 {[%clk 0:00:14.4]} 44. Rc8+ {[%clk
0:00:13.9]} 44... Kxd4 {[%clk 0:00:14.2]} 45. Rxc1 {[%clk 0:00:13.4]} 45... Nxg4
{[%clk 0:00:15.1]} 46. Rg1 {[%clk 0:00:13.6]} 46... Nf6 {[%clk 0:00:10.5]} 47.
Rxg5 {[%clk 0:00:13.6]} 47... Ne8 {[%clk 0:00:09.9]} 48. Rf5 {[%clk 0:00:13.2]}
48... Kc4 {[%clk 0:00:08.3]} 49. Rf7 {[%clk 0:00:12.6]} 49... b5 {[%clk
0:00:07.4]} 50. Re7 {[%clk 0:00:10.4]} 50... Nf6 {[%clk 0:00:07]} 51. Rxg7
{[%clk 0:00:07.5]} 51... Nxh5 {[%clk 0:00:07.3]} 52. Rg4+ {[%clk 0:00:07.8]}
52... d4 {[%clk 0:00:06.7]} 53. Kd2 {[%clk 0:00:07.1]} 53... Nf6 {[%clk
0:00:06.6]} 54. Rg6 {[%clk 0:00:06.5]} 54... Nd5 {[%clk 0:00:07.5]} 55. Rc6+
{[%clk 0:00:05.7]} 55... Kxb4 {[%clk 0:00:07.4]} 56. Kd3 {[%clk 0:00:05]} 56...
Nc3 {[%clk 0:00:07]} 57. Kxd4 {[%clk 0:00:04.9]} 57... Nxa2 {[%clk 0:00:07.3]}
58. Rc2 {[%clk 0:00:05.5]} 58... Kb3 {[%clk 0:00:07.1]} 59. Rxa2 {[%clk
0:00:06.1]} 59... Kxa2 {[%clk 0:00:07.3]} 60. Kc5 {[%clk 0:00:07]} 60... Kb3
{[%clk 0:00:07.8]} 61. Kxb5 {[%clk 0:00:07.4]} 1/2-1/2

[Event "Early-Titled-Tuesday-Blitz-October-03-2023"]
[Site "Chess.com"]
[Date "2023.10.03"]
[Round "9"]
[White "Yushko_Olga"]
[Black "BeautiFullMindChess"]
[Result "0-1"]
[WhiteElo "2100"]
[BlackElo "2380"]
[TimeControl "180+1"]
[EndTime "9:47:09 PDT"]
[Termination "BeautiFullMindChess won by checkmate"]

1. d4 {[%clk 0:02:59.5]} 1... Nf6 {[%clk 0:02:59.8]} 2. c4 {[%clk 0:02:57.4]}
2... g6 {[%clk 0:03:00.2]} 3. Nc3 {[%clk 0:02:57.1]} 3... d5 {[%clk 0:02:57.5]}
4. Nf3 {[%clk 0:02:56.6]} 4... Bg7 {[%clk 0:02:57]} 5. Bf4 {[%clk 0:02:54.8]}
5... O-O {[%clk 0:02:55.3]} 6. e3 {[%clk 0:02:54.8]} 6... c5 {[%clk 0:02:55.4]}
7. Be2 {[%clk 0:02:55.4]} 7... cxd4 {[%clk 0:02:52.3]} 8. exd4 {[%clk
0:02:55.4]} 8... dxc4 {[%clk 0:02:50.9]} 9. Bxc4 {[%clk 0:02:55.2]} 9... Nc6
{[%clk 0:02:51.8]} 10. O-O {[%clk 0:02:55.1]} 10... Na5 {[%clk 0:02:51.3]} 11.
Be2 {[%clk 0:02:55.3]} 11... Be6 {[%clk 0:02:51.6]} 12. Qa4 {[%clk 0:02:43.6]}
12... Rc8 {[%clk 0:02:50.2]} 13. Rac1 {[%clk 0:02:34.1]} 13... Bc4 {[%clk
0:02:48.2]} 14. Ne5 {[%clk 0:02:17.9]} 14... Bxe2 {[%clk 0:02:47.5]} 15. Nxe2
{[%clk 0:02:17.5]} 15... Rxc1 {[%clk 0:02:36.2]} 16. Rxc1 {[%clk 0:02:16.9]}
16... Nd5 {[%clk 0:02:36.2]} 17. Bg3 {[%clk 0:02:13.9]} 17... Bxe5 {[%clk
0:02:02.7]} 18. Bxe5 {[%clk 0:02:10.7]} 18... Nc6 {[%clk 0:02:02.9]} 19. Bg3
{[%clk 0:02:04]} 19... Qb6 {[%clk 0:01:56.4]} 20. b3 {[%clk 0:01:53.9]} 20...
Rd8 {[%clk 0:01:54.9]} 21. h3 {[%clk 0:01:48.3]} 21... Qb4 {[%clk 0:01:46.1]}
22. Qxb4 {[%clk 0:01:39.9]} 22... Ndxb4 {[%clk 0:01:44.4]} 23. a3 {[%clk
0:01:39.5]} 23... Nd5 {[%clk 0:01:37.3]} 24. f3 {[%clk 0:01:33.9]} 24... f6
{[%clk 0:01:29.4]} 25. b4 {[%clk 0:01:30.2]} 25... a6 {[%clk 0:01:25.7]} 26. Rc5
{[%clk 0:01:22.3]} 26... Kf7 {[%clk 0:01:04.1]} 27. b5 {[%clk 0:01:22.7]} 27...
axb5 {[%clk 0:01:04.2]} 28. Rxb5 {[%clk 0:01:23.6]} 28... Rd7 {[%clk 0:01:04]}
29. a4 {[%clk 0:01:10]} 29... b6 {[%clk 0:00:48.2]} 30. Be1 {[%clk 0:00:51.8]}
30... g5 {[%clk 0:00:47.3]} 31. a5 {[%clk 0:00:52]} 31... bxa5 {[%clk
0:00:46.6]} 32. Bxa5 {[%clk 0:00:52.9]} 32... Ne3 {[%clk 0:00:39.9]} 33. Bc3
{[%clk 0:00:49.2]} 33... Nd5 {[%clk 0:00:37.2]} 34. Be1 {[%clk 0:00:46.3]} 34...
h5 {[%clk 0:00:37.1]} 35. Kf2 {[%clk 0:00:46]} 35... h4 {[%clk 0:00:36.9]} 36.
Rc5 {[%clk 0:00:41.6]} 36... Nd8 {[%clk 0:00:36.9]} 37. Ba5 {[%clk 0:00:39.3]}
37... Ne6 {[%clk 0:00:36.6]} 38. Rb5 {[%clk 0:00:36.4]} 38... Ndf4 {[%clk
0:00:35.6]} 39. Nxf4 {[%clk 0:00:35.8]} 39... Nxf4 {[%clk 0:00:35.8]} 40. Bc3
{[%clk 0:00:34.4]} 40... Ra7 {[%clk 0:00:34.5]} 41. Bd2 {[%clk 0:00:31.5]} 41...
Ra2 {[%clk 0:00:33.8]} 42. Ke1 {[%clk 0:00:27.3]} 42... Nxg2+ {[%clk 0:00:33.8]}
43. Ke2 {[%clk 0:00:27.8]} 43... Nf4+ {[%clk 0:00:33]} 44. Ke3 {[%clk
0:00:27.9]} 44... Nxh3 {[%clk 0:00:32.3]} 45. Rb7 {[%clk 0:00:27.6]} 45... Ra3+
{[%clk 0:00:31]} 46. Ke4 {[%clk 0:00:24.6]} 46... Ra6 {[%clk 0:00:25.5]} 47. Kf5
{[%clk 0:00:22.9]} 47... Nf2 {[%clk 0:00:22.9]} 48. d5 {[%clk 0:00:20.9]} 48...
Ra8 {[%clk 0:00:13.8]} 49. Bb4 {[%clk 0:00:20.5]} 49... Re8 {[%clk 0:00:13.5]}
50. d6 {[%clk 0:00:20.5]} 50... h3 {[%clk 0:00:13]} 51. d7 {[%clk 0:00:09.7]}
51... e6# {[%clk 0:00:10.8]} 0-1

[Event "Early-Titled-Tuesday-Blitz-October-03-2023"]
[Site "Chess.com"]
[Date "2023.10.03"]
[Round "9"]
[White "N4700000"]
[Black "invisible_s0ul"]
[Result "1-0"]
[WhiteElo "2410"]
[BlackElo "2291"]
[TimeControl "180+1"]
[EndTime "9:47:11 PDT"]
[Termination "N4700000 won by resignation"]

1. e4 {[%clk 0:02:59.3]} 1... c5 {[%clk 0:02:56.4]} 2. d4 {[%clk 0:02:58.5]}
2... Nf6 {[%clk 0:02:49.8]} 3. e5 {[%clk 0:02:55.1]} 3... Nd5 {[%clk 0:02:46.1]}
4. c4 {[%clk 0:02:52.2]} 4... Nc7 {[%clk 0:02:32.4]} 5. d5 {[%clk 0:02:46.4]}
5... d6 {[%clk 0:02:26.5]} 6. f4 {[%clk 0:02:43.3]} 6... dxe5 {[%clk 0:02:19.4]}
7. fxe5 {[%clk 0:02:42.2]} 7... e6 {[%clk 0:02:14.1]} 8. Nc3 {[%clk 0:02:23.9]}
8... Qh4+ {[%clk 0:01:37.7]} 9. g3 {[%clk 0:02:14.2]} 9... Qd4 {[%clk
0:01:38.2]} 10. Qe2 {[%clk 0:01:17.5]} 10... exd5 {[%clk 0:01:30.6]} 11. cxd5
{[%clk 0:01:05.6]} 11... Nxd5 {[%clk 0:01:22.6]} 12. Nb5 {[%clk 0:01:02.1]}
12... Qb4+ {[%clk 0:01:04.3]} 13. Qd2 {[%clk 0:00:55.8]} 13... Qxd2+ {[%clk
0:01:04]} 14. Bxd2 {[%clk 0:00:56.7]} 14... a6 {[%clk 0:01:01.4]} 15. Nc3 {[%clk
0:00:44.4]} 15... Nxc3 {[%clk 0:00:48.6]} 16. Bxc3 {[%clk 0:00:45.3]} 16... Bd7
{[%clk 0:00:41.1]} 17. Bg2 {[%clk 0:00:39.6]} 17... Bc6 {[%clk 0:00:41.4]} 18.
Nf3 {[%clk 0:00:39.9]} 18... Nd7 {[%clk 0:00:37.9]} 19. O-O {[%clk 0:00:39.3]}
19... Be7 {[%clk 0:00:32]} 20. Rae1 {[%clk 0:00:31.3]} 20... O-O {[%clk
0:00:31.4]} 21. e6 {[%clk 0:00:27.7]} 21... fxe6 {[%clk 0:00:29.6]} 22. Rxe6
{[%clk 0:00:28.6]} 22... Bf6 {[%clk 0:00:30.2]} 23. Bxf6 {[%clk 0:00:18.6]}
23... Nxf6 {[%clk 0:00:31.1]} 24. Re7 {[%clk 0:00:17.1]} 24... Rfe8 {[%clk
0:00:28.8]} 25. Rfe1 {[%clk 0:00:16.8]} 25... Rxe7 {[%clk 0:00:27.2]} 26. Rxe7
{[%clk 0:00:17.7]} 26... Re8 {[%clk 0:00:27.4]} 27. Rxe8+ {[%clk 0:00:16]} 27...
Nxe8 {[%clk 0:00:28.3]} 28. Ne5 {[%clk 0:00:15.3]} 28... Bxg2 {[%clk 0:00:27.4]}
29. Kxg2 {[%clk 0:00:16.2]} 29... Nf6 {[%clk 0:00:24.4]} 30. Kf3 {[%clk
0:00:15.8]} 30... Kf8 {[%clk 0:00:25]} 31. g4 {[%clk 0:00:15.8]} 31... h6 {[%clk
0:00:24.2]} 32. h4 {[%clk 0:00:15.8]} 32... Ke7 {[%clk 0:00:23]} 33. g5 {[%clk
0:00:16.1]} 33... hxg5 {[%clk 0:00:23.6]} 34. hxg5 {[%clk 0:00:17]} 34... Nd7
{[%clk 0:00:21.2]} 35. Nd3 {[%clk 0:00:16.2]} 35... Ke6 {[%clk 0:00:14.4]} 36.
Ke4 {[%clk 0:00:15.3]} 36... c4 {[%clk 0:00:14]} 37. Nf4+ {[%clk 0:00:15.2]}
37... Kd6 {[%clk 0:00:10.5]} 38. Kf5 {[%clk 0:00:14.7]} 38... b5 {[%clk
0:00:09.1]} 39. a3 {[%clk 0:00:14]} 39... a5 {[%clk 0:00:08.5]} 40. Kg6 {[%clk
0:00:14.2]} 40... Ke5 {[%clk 0:00:07.6]} 41. Ne2 {[%clk 0:00:13.4]} 41... b4
{[%clk 0:00:04.9]} 42. axb4 {[%clk 0:00:13.7]} 42... axb4 {[%clk 0:00:05.8]} 43.
Kxg7 {[%clk 0:00:14.2]} 43... Kf5 {[%clk 0:00:06.5]} 44. Kh6 {[%clk 0:00:12.8]}
44... Ne5 {[%clk 0:00:07.1]} 45. Nd4+ {[%clk 0:00:11.8]} 45... Ke4 {[%clk
0:00:07.1]} 46. Nb5 {[%clk 0:00:11.4]} 46... Kd3 {[%clk 0:00:06.9]} 47. Kg7
{[%clk 0:00:10.9]} 47... c3 {[%clk 0:00:06.5]} 48. bxc3 {[%clk 0:00:11.1]} 48...
bxc3 {[%clk 0:00:07.4]} 49. Na3 {[%clk 0:00:09.2]} 49... c2 {[%clk 0:00:04.5]}
50. Nxc2 {[%clk 0:00:09.2]} 50... Kxc2 {[%clk 0:00:05.4]} 51. Kf6 {[%clk
0:00:09.5]} 51... Nd7+ {[%clk 0:00:04.6]} 52. Ke7 {[%clk 0:00:09.1]} 52... Ne5
{[%clk 0:00:04.8]} 53. Ke6 {[%clk 0:00:09]} 53... Nf3 {[%clk 0:00:03.8]} 54. g6
{[%clk 0:00:07.5]} 54... Nd4+ {[%clk 0:00:04.5]} 55. Kf6 {[%clk 0:00:07.1]}
55... Nc6 {[%clk 0:00:04.4]} 56. g7 {[%clk 0:00:07]} 56... Nb4 {[%clk
0:00:03.5]} 57. g8=Q {[%clk 0:00:07]} 57... Nd5+ {[%clk 0:00:04.4]} 58. Qxd5
{[%clk 0:00:06.7]} 1-0

[Event "Early-Titled-Tuesday-Blitz-October-03-2023"]
[Site "Chess.com"]
[Date "2023.10.03"]
[Round "9"]
[White "ViktoriyaTarasova"]
[Black "kritipatel"]
[Result "0-1"]
[WhiteElo "2367"]
[BlackElo "2156"]
[TimeControl "180+1"]
[EndTime "9:47:17 PDT"]
[Termination "kritipatel won on time"]

1. d4 {[%clk 0:03:00.9]} 1... d5 {[%clk 0:02:59.1]} 2. c4 {[%clk 0:03:01.1]}
2... e6 {[%clk 0:02:59.5]} 3. Nc3 {[%clk 0:02:59.9]} 3... Nf6 {[%clk 0:02:59.2]}
4. cxd5 {[%clk 0:02:59.5]} 4... exd5 {[%clk 0:02:58.4]} 5. Bg5 {[%clk
0:02:58.9]} 5... Be7 {[%clk 0:02:58.8]} 6. Qc2 {[%clk 0:02:58.5]} 6... c6 {[%clk
0:02:58.6]} 7. e3 {[%clk 0:02:58.8]} 7... Nbd7 {[%clk 0:02:59]} 8. Bd3 {[%clk
0:02:59]} 8... O-O {[%clk 0:02:59.4]} 9. Nge2 {[%clk 0:02:59.3]} 9... Re8 {[%clk
0:02:58.7]} 10. O-O {[%clk 0:02:58.8]} 10... Nf8 {[%clk 0:02:59.4]} 11. Rae1
{[%clk 0:02:48.8]} 11... g6 {[%clk 0:02:57.9]} 12. f3 {[%clk 0:02:40.9]} 12...
Ne6 {[%clk 0:02:57.7]} 13. Bh4 {[%clk 0:02:39.8]} 13... b5 {[%clk 0:02:58.1]}
14. Bf2 {[%clk 0:02:23.9]} 14... Bb7 {[%clk 0:02:56.7]} 15. Ng3 {[%clk
0:02:22.5]} 15... Rc8 {[%clk 0:02:54.6]} 16. Qb1 {[%clk 0:02:05.6]} 16... b4
{[%clk 0:02:49.4]} 17. Nce2 {[%clk 0:02:05.6]} 17... c5 {[%clk 0:02:43.3]} 18.
dxc5 {[%clk 0:01:58]} 18... Bxc5 {[%clk 0:02:42]} 19. Bb5 {[%clk 0:01:55.4]}
19... Re7 {[%clk 0:02:23.9]} 20. Nd4 {[%clk 0:01:54.8]} 20... Nc7 {[%clk
0:02:15.5]} 21. Bd3 {[%clk 0:01:52.4]} 21... a5 {[%clk 0:02:05.1]} 22. Nge2
{[%clk 0:01:47.6]} 22... a4 {[%clk 0:01:57.1]} 23. Rc1 {[%clk 0:01:47.1]} 23...
Na6 {[%clk 0:01:55.3]} 24. Rc2 {[%clk 0:01:40.8]} 24... b3 {[%clk 0:01:48.6]}
25. axb3 {[%clk 0:01:36.4]} 25... axb3 {[%clk 0:01:39.6]} 26. Rc3 {[%clk
0:01:34.9]} 26... Nb4 {[%clk 0:01:30.1]} 27. Bb5 {[%clk 0:01:25.4]} 27... Qb6
{[%clk 0:01:20.7]} 28. Rxb3 {[%clk 0:01:19]} 28... Qc7 {[%clk 0:01:05.7]} 29.
Rc1 {[%clk 0:01:11.9]} 29... Qd6 {[%clk 0:00:42.5]} 30. Rbc3 {[%clk 0:01:04.5]}
30... Ba6 {[%clk 0:00:36.8]} 31. Bxa6 {[%clk 0:00:52.8]} 31... Nxa6 {[%clk
0:00:36.8]} 32. Nb3 {[%clk 0:00:34.3]} 32... Rec7 {[%clk 0:00:34.9]} 33. Bg3
{[%clk 0:00:30]} 33... Bxe3+ {[%clk 0:00:21.8]} 34. Rxe3 {[%clk 0:00:25.7]}
34... Rxc1+ {[%clk 0:00:21.1]} 35. Nbxc1 {[%clk 0:00:22.3]} 35... Qb6 {[%clk
0:00:20.5]} 36. Bf2 {[%clk 0:00:22.6]} 36... d4 {[%clk 0:00:20.1]} 37. Rd3
{[%clk 0:00:20.7]} 37... Nb4 {[%clk 0:00:18.6]} 38. Rxd4 {[%clk 0:00:20.4]}
38... Qb5 {[%clk 0:00:16.7]} 39. h3 {[%clk 0:00:17.6]} 39... Kg7 {[%clk
0:00:15.8]} 40. Kh2 {[%clk 0:00:11.2]} 40... Qe5+ {[%clk 0:00:15.1]} 41. Bg3
{[%clk 0:00:11.4]} 41... Qb5 {[%clk 0:00:13.2]} 42. b3 {[%clk 0:00:11.6]} 42...
Nc6 {[%clk 0:00:13.1]} 43. Rd2 {[%clk 0:00:10.7]} 43... Qb4 {[%clk 0:00:12.7]}
44. Qb2 {[%clk 0:00:10.7]} 44... Qe7 {[%clk 0:00:10.3]} 45. Nd3 {[%clk
0:00:10.2]} 45... Rd8 {[%clk 0:00:07.8]} 46. Ndf4 {[%clk 0:00:10.2]} 46... Rxd2
{[%clk 0:00:07.4]} 47. Qxd2 {[%clk 0:00:10.4]} 47... Nb4 {[%clk 0:00:08]} 48.
Qc3 {[%clk 0:00:09.4]} 48... Kh6 {[%clk 0:00:05.5]} 49. Qd2 {[%clk 0:00:07.9]}
49... Kg7 {[%clk 0:00:05.1]} 50. Qxb4 {[%clk 0:00:08]} 50... Qxb4 {[%clk
0:00:04.7]} 51. Nd3 {[%clk 0:00:04.2]} 51... Qxb3 {[%clk 0:00:04.6]} 52. Nef4
{[%clk 0:00:04.4]} 52... Qc3 {[%clk 0:00:04.6]} 53. Be1 {[%clk 0:00:03.4]} 53...
Qc2 {[%clk 0:00:04.5]} 54. Nf2 {[%clk 0:00:02.4]} 54... Qe2 {[%clk 0:00:04.6]}
0-1

[Event "Early-Titled-Tuesday-Blitz-October-03-2023"]
[Site "Chess.com"]
[Date "2023.10.03"]
[Round "9"]
[White "NowInChess"]
[Black "copanchess"]
[Result "1/2-1/2"]
[WhiteElo "2220"]
[BlackElo "2160"]
[TimeControl "180+1"]
[EndTime "9:47:17 PDT"]
[Termination "Game drawn by stalemate"]

1. e4 {[%clk 0:03:00.9]} 1... e5 {[%clk 0:02:55.3]} 2. Nf3 {[%clk 0:02:59.6]}
2... Nc6 {[%clk 0:02:55.5]} 3. Bc4 {[%clk 0:02:59.7]} 3... Nf6 {[%clk 0:02:55]}
4. Nc3 {[%clk 0:02:51.7]} 4... Bc5 {[%clk 0:02:53.8]} 5. d3 {[%clk 0:02:48.7]}
5... d6 {[%clk 0:02:54.3]} 6. Be3 {[%clk 0:02:48.7]} 6... Nd4 {[%clk 0:02:49.9]}
7. Na4 {[%clk 0:02:38.4]} 7... Nxf3+ {[%clk 0:02:32.5]} 8. Qxf3 {[%clk
0:02:37.2]} 8... Bxe3 {[%clk 0:02:32]} 9. Qxe3 {[%clk 0:02:29.7]} 9... c6 {[%clk
0:02:31.6]} 10. Nc3 {[%clk 0:02:17.5]} 10... O-O {[%clk 0:02:29.7]} 11. Bb3
{[%clk 0:02:14.8]} 11... d5 {[%clk 0:02:25.5]} 12. Qg3 {[%clk 0:02:09.1]} 12...
d4 {[%clk 0:02:01.3]} 13. Ne2 {[%clk 0:02:07.1]} 13... Qa5+ {[%clk 0:01:58]} 14.
c3 {[%clk 0:01:57.2]} 14... dxc3 {[%clk 0:01:42]} 15. bxc3 {[%clk 0:01:58.1]}
15... Be6 {[%clk 0:01:19.6]} 16. Bxe6 {[%clk 0:01:55.4]} 16... fxe6 {[%clk
0:01:20.5]} 17. O-O {[%clk 0:01:53.8]} 17... Rad8 {[%clk 0:01:17]} 18. f4 {[%clk
0:01:18.8]} 18... exf4 {[%clk 0:01:11.4]} 19. Nxf4 {[%clk 0:01:12.1]} 19... Qc5+
{[%clk 0:01:04.5]} 20. d4 {[%clk 0:01:05.8]} 20... Qe7 {[%clk 0:00:33.3]} 21. e5
{[%clk 0:01:05]} 21... Ne4 {[%clk 0:00:28.3]} 22. Qe3 {[%clk 0:00:52.2]} 22...
Ng5 {[%clk 0:00:26.9]} 23. Rab1 {[%clk 0:00:46]} 23... b6 {[%clk 0:00:26]} 24.
Rb2 {[%clk 0:00:45.4]} 24... Nf7 {[%clk 0:00:23.1]} 25. Rbf2 {[%clk 0:00:42.2]}
25... Nh6 {[%clk 0:00:23]} 26. h3 {[%clk 0:00:39]} 26... Nf5 {[%clk 0:00:22.4]}
27. Qf3 {[%clk 0:00:35.5]} 27... c5 {[%clk 0:00:22.2]} 28. g4 {[%clk 0:00:33.4]}
28... Nh4 {[%clk 0:00:20.5]} 29. Qe3 {[%clk 0:00:31.8]} 29... cxd4 {[%clk
0:00:19.5]} 30. cxd4 {[%clk 0:00:32.7]} 30... Qd7 {[%clk 0:00:18.2]} 31. Qg3
{[%clk 0:00:28.4]} 31... Ng6 {[%clk 0:00:17.1]} 32. Nxg6 {[%clk 0:00:27.1]}
32... hxg6 {[%clk 0:00:17.3]} 33. Rxf8+ {[%clk 0:00:26.9]} 33... Rxf8 {[%clk
0:00:17.2]} 34. Rxf8+ {[%clk 0:00:26.8]} 34... Kxf8 {[%clk 0:00:17.6]} 35. Qf4+
{[%clk 0:00:24.9]} 35... Kg8 {[%clk 0:00:17]} 36. Qe4 {[%clk 0:00:22]} 36... Kf7
{[%clk 0:00:15.2]} 37. Kf2 {[%clk 0:00:20.2]} 37... a6 {[%clk 0:00:14.7]} 38.
Kg3 {[%clk 0:00:19.4]} 38... b5 {[%clk 0:00:15]} 39. Kf4 {[%clk 0:00:19.1]}
39... a5 {[%clk 0:00:13.7]} 40. Kg5 {[%clk 0:00:16.1]} 40... Qe7+ {[%clk
0:00:12.6]} 41. Kf4 {[%clk 0:00:16]} 41... b4 {[%clk 0:00:12]} 42. Qd3 {[%clk
0:00:10.6]} 42... g5+ {[%clk 0:00:10.8]} 43. Kg3 {[%clk 0:00:09.6]} 43... Qd7
{[%clk 0:00:10.2]} 44. Qf3+ {[%clk 0:00:09.9]} 44... Kg6 {[%clk 0:00:09.5]} 45.
Qd3+ {[%clk 0:00:10.4]} 45... Kf7 {[%clk 0:00:09.5]} 46. h4 {[%clk 0:00:11]}
46... gxh4+ {[%clk 0:00:09.3]} 47. Kxh4 {[%clk 0:00:11.9]} 47... a4 {[%clk
0:00:08.7]} 48. Kh5 {[%clk 0:00:10.2]} 48... Kg8 {[%clk 0:00:06.8]} 49. Kg6
{[%clk 0:00:08.8]} 49... Qf7+ {[%clk 0:00:06.7]} 50. Kg5 {[%clk 0:00:08.5]}
50... Qe7+ {[%clk 0:00:06.4]} 51. Kh5 {[%clk 0:00:08.4]} 51... Qe8+ {[%clk
0:00:06.1]} 52. Kh4 {[%clk 0:00:08.5]} 52... Qd8+ {[%clk 0:00:05.9]} 53. g5
{[%clk 0:00:07.5]} 53... Qd5 {[%clk 0:00:05.6]} 54. Kg3 {[%clk 0:00:06]} 54...
b3 {[%clk 0:00:05.2]} 55. axb3 {[%clk 0:00:05.6]} 55... Qxb3 {[%clk 0:00:05.8]}
56. Qxb3 {[%clk 0:00:03.9]} 56... axb3 {[%clk 0:00:06.7]} 57. d5 {[%clk
0:00:04.6]} 57... exd5 {[%clk 0:00:06]} 58. g6 {[%clk 0:00:05.1]} 58... b2
{[%clk 0:00:06]} 59. e6 {[%clk 0:00:05.7]} 59... b1=Q {[%clk 0:00:06.1]} 60. e7
{[%clk 0:00:06.4]} 60... Qe4 {[%clk 0:00:05.9]} 61. e8=Q+ {[%clk 0:00:06]} 61...
Qxe8 {[%clk 0:00:06.2]} 62. Kf4 {[%clk 0:00:06.9]} 62... Qe4+ {[%clk 0:00:06.1]}
63. Kg5 {[%clk 0:00:07]} 63... Kf8 {[%clk 0:00:06.9]} 64. Kh5 {[%clk 0:00:07.9]}
64... Ke7 {[%clk 0:00:07.3]} 65. Kg5 {[%clk 0:00:08.8]} 65... Ke6 {[%clk
0:00:07.5]} 66. Kh5 {[%clk 0:00:09.7]} 66... Qf4 {[%clk 0:00:07.3]} 1/2-1/2